lending/lending_fUSD_20250819
["ID","MTS","AMOUNT","RATE_DAILY","PERIOD"]
[380270810,1755630704767,-400.0,0.00023821,30]
[380270811,1755630704830,-452.13,0.00023821,30]
[380270812,1755630704890,-768.98,0.00023821,30]
[380270813,1755630704951,-1813.68,0.00023821,30]
[380270814,1755630705023,-400.0,0.00023821,30]
[380270815,1755630705090,-400.0,0.00023821,30]
[380270816,1755630705160,-400.0,0.00023821,30]
[380270817,1755630705226,-2223.82,0.00023821,30]
[380270818,1755630705295,-400.0,0.00023821,30]
[380270819,1755630705363,-2140.5,0.00023821,30]
[380270820,1755630705429,-400.0,0.00023821,30]
[380270821,1755630705495,-762.55,0.00023821,30]
[380270822,1755630705559,-2978.0,0.00023821,30]
[380270823,1755630705621,-1352.34,0.00023821,30]
[380270824,1755630705684,-400.0,0.00023821,30]
[380270825,1755630705754,-447.68,0.00023821,30]
[380270826,1755630705819,-2258.26,0.00023821,30]
[380270827,1755630705883,-400.0,0.00023821,30]
[380270828,1755630705945,-400.0,0.00023821,30]
[380270829,1755630706006,-666.94,0.00023821,30]
[380270830,1755630706069,-400.0,0.00023821,30]
[380270831,1755630706133,-400.0,0.00023821,30]
[380270832,1755630706199,-400.0,0.00023821,30]
[380270833,1755630706267,-699.19,0.00023821,30]
[380270834,1755630706333,-786.12,0.00023821,30]
[380270835,1755630706397,-1078.83,0.00023821,30]
[380270836,1755630706460,-1117.26,0.00023821,30]
[380270837,1755630706521,-400.0,0.00023821,30]
[380270838,1755630706581,-400.0,0.00023821,30]
[380270839,1755630706642,-685.74,0.00023821,30]
[380270840,1755630706706,-1514.98,0.00023821,30]
[380270841,1755630706768,-686.36,0.00023821,30]
[380270842,1755630706828,-400.0,0.00023821,30]
[380270843,1755630706887,-783.3,0.00023821,30]
[380270844,1755630706945,-400.0,0.00023821,30]
[380270845,1755630707008,-400.0,0.00023821,30]
[380270846,1755630707072,-400.0,0.00023821,30]
[380270847,1755630707140,-3991.88,0.00023821,30]
[380270848,1755630707206,-927.22,0.00023821,30]
[380270849,1755630707272,-3326.57,0.00023821,30]
[380270850,1755630707337,-858.73,0.00023821,30]
[380270851,1755630707402,-463.57,0.00023821,30]
[380270852,1755630707463,-638.06,0.00023821,30]
[380270853,1755630707522,-1217.67,0.00023821,30]
[380270854,1755630707580,-1055.26,0.00023821,30]
[380270855,1755630707638,-617.22,0.00023821,30]
[380270856,1755630707697,-654.88,0.00023821,30]
[380270857,1755630707753,-927.42,0.00023821,30]
[380270858,1755630707810,-400.0,0.00023821,30]
[380270859,1755630707866,-877.36,0.00023821,30]
[380270860,1755630707921,-1451.41,0.00023821,30]
[380270861,1755630707983,-400.0,0.00023821,30]
[380270862,1755630708042,-774.15,0.00023821,30]
[380270863,1755630708105,-400.0,0.00023821,30]
[380270864,1755630708172,-400.0,0.00023821,30]
[380270865,1755630708241,-755.17,0.00023821,30]
[380270866,1755630708306,-1269.4,0.00023821,30]
[380270867,1755630708372,-850.21,0.00023821,30]
[380270868,1755630708435,-400.0,0.00023821,30]
[380270869,1755630708497,-2050.78,0.00023821,30]
[380270870,1755630708555,-350.73852579,0.00023821,30]
[380270871,1755630708612,-218.56357236,0.00023821,30]
[380270872,1755630708671,-1574.07,0.00023821,30]
[380270873,1755630708729,-3252.62,0.00023821,30]
[380270874,1755630708787,-400.0,0.00023821,30]
[380270875,1755630708846,-400.0,0.00023821,30]
[380270876,1755630708901,-893.8,0.00023821,30]
[380270877,1755630708959,-1796.62,0.00023821,30]
[380270878,1755630709015,-2151.13,0.00023821,30]
[380270879,1755630709077,-400.0,0.00023821,30]
[380270880,1755630709141,-400.0,0.00023821,30]
[380270881,1755630709205,-221.25,0.00023821,30]
[380270882,1755630709270,-400.0,0.00023821,30]
[380270883,1755630709332,-400.0,0.00023821,30]
[380270884,1755630709397,-1524.91,0.00023821,30]
[380270885,1755630709456,-400.0,0.00023821,30]
[380270886,1755630709513,-1268.61,0.00023821,30]
[380270887,1755630710054,-371.12032103,0.00023821,30]
[380270888,1755630710117,-3537.65,0.00023821,30]
[380270889,1755630710181,-400.0,0.00023821,30]
[380270890,1755630710245,-632.78,0.00023821,30]
[380270891,1755630710305,-416.81340152,0.00023821,30]
[380270892,1755630710366,-1091.34,0.00023821,30]
[380270893,1755630710427,-1777.71,0.00023821,30]
[380270894,1755630710488,-1517.91,0.00023821,30]
[380270895,1755630710554,-400.0,0.00023821,30]
[380270896,1755630710612,-449.25,0.00023821,30]
[380270897,1755630710668,-400.0,0.00023821,30]
[380270898,1755630710725,-1999.87,0.00023821,30]
[380270899,1755630710785,-603.15,0.00023821,30]
[380270900,1755630710849,-400.0,0.00023821,30]
[380270901,1755630710911,-737.73,0.00023821,30]
[380270902,1755630710973,-759.41,0.00023821,30]
[380270903,1755630711041,-2887.56,0.00023821,30]
[380270904,1755630711107,-2399.17,0.00023821,30]
[380270905,1755630711171,-1092.33,0.00023821,30]
[380270906,1755630711235,-400.0,0.00023821,30]
[380270907,1755630711302,-1154.89,0.00023821,30]
[380270908,1755630711367,-400.0,0.00023821,30]
[380270909,1755630711428,-400.0,0.00023821,30]
[380270910,1755630711485,-540.17,0.00023821,30]
[380270911,1755630711541,-1604.08,0.00023821,30]
[380270912,1755630711596,-400.0,0.00023821,30]
[380270913,1755630711654,-862.64,0.00023821,30]
[380270914,1755630711708,-558.64,0.00023821,30]
[380270915,1755630711762,-961.11,0.00023821,30]
[380270916,1755630711815,-464.91,0.00023821,30]
[380270917,1755630711870,-400.0,0.00023821,30]
[380270918,1755630711924,-996.27,0.00023821,30]
[380270919,1755630711977,-400.0,0.00023821,30]
[380270920,1755630712034,-1174.54,0.00023821,30]
[380270921,1755630712092,-400.0,0.00023821,30]
[380270922,1755630712152,-400.0,0.00023821,30]
[380270923,1755630712215,-400.0,0.00023821,30]
[380270924,1755630712275,-330.19738732,0.00023821,30]
[380270925,1755630712337,-529.25,0.00023821,30]
[380270926,1755630712401,-467.39,0.00023821,30]
[380270927,1755630712464,-1287.79,0.00023821,30]
[380270928,1755630712526,-410.72,0.00023821,30]
[380270929,1755630712585,-645.33,0.00023821,30]
[380270930,1755630712643,-400.0,0.00023821,30]
[380270931,1755630712718,-897.36,0.00024095,30]
[380270932,1755630712776,-1779.17,0.00024095,30]
[380270933,1755630712833,-400.0,0.00024095,30]
[380270934,1755630712886,-400.0,0.00024095,30]
[380270935,1755630712940,-400.0,0.00024095,30]
[380270936,1755630712998,-400.0,0.00024095,30]
[380270937,1755630713060,-922.03,0.00024095,30]
[380270938,1755630713121,-1077.73,0.00024095,30]
[380270939,1755630713183,-400.0,0.00024095,30]
[380270940,1755630713244,-424.48,0.00024095,30]
[380270941,1755630713303,-400.0,0.00024095,30]
[380270942,1755630713365,-573.46,0.00024095,30]
[380270943,1755630713427,-405.71,0.00024095,30]
[380270944,1755630713489,-1099.82,0.00024095,30]
[380270945,1755630713546,-1032.27,0.00024095,30]
[380270946,1755630713601,-405.59,0.00024095,30]
[380270947,1755630713657,-657.7,0.00024095,30]
[380270948,1755630713713,-2773.84,0.00024095,30]
[380270949,1755630713772,-2616.85,0.00024095,30]
[380270950,1755630713828,-569.65,0.00024095,30]
[380270951,1755630713883,-609.41,0.00024095,30]
[380270952,1755630713944,-523.45,0.00024095,30]
[380270953,1755630714003,-2291.88,0.00024095,30]
[380270954,1755630714066,-1113.47,0.00024095,30]
[380270955,1755630714130,-1609.3,0.00024095,30]
[380270956,1755630714195,-400.0,0.00024095,30]
[380270957,1755630714260,-503.96,0.00024095,30]
[380270958,1755630714325,-1375.63,0.00024095,30]
[380270959,1755630714389,-2391.62,0.00024095,30]
[380270960,1755630714457,-400.0,0.00024095,30]
[380270961,1755630714520,-567.71,0.00024095,30]
[380270962,1755630714580,-976.66,0.00024095,30]
[380270963,1755630714640,-444.55,0.00024095,30]
[380270964,1755630714708,-400.0,0.00024095,30]
[380270965,1755630714873,-1613.2,0.00024095,30]
[380270966,1755630714935,-655.88,0.00024095,30]
[380270967,1755630714997,-400.0,0.00024095,30]
[380270968,1755630715061,-1093.07,0.00024095,30]
[380270969,1755630715126,-1066.76,0.00024095,30]
[380270970,1755630715191,-750.6,0.00024095,30]
[380270971,1755630715255,-400.0,0.00024095,30]
[380270972,1755630715318,-400.0,0.00024095,30]
[380270973,1755630715382,-983.97,0.00024095,30]
[380270974,1755630715443,-1275.26,0.00024095,30]
[380270975,1755630715505,-475.91,0.00024095,30]
[380270976,1755630715568,-2197.7,0.00024095,30]
[380270977,1755630715626,-441.25,0.00024095,30]
[380270978,1755630715683,-400.0,0.00024095,30]
[380270979,1755630715745,-1698.15,0.00024095,30]
[380270980,1755630715805,-1243.9,0.00024095,30]
[380270981,1755630715863,-400.0,0.00024095,30]
[380270982,1755630715922,-400.0,0.00024095,30]
[380270983,1755630715979,-400.0,0.00024095,30]
[380270984,1755630716043,-514.92,0.00024095,30]
[380270985,1755630716108,-400.0,0.00024095,30]
[380270986,1755630716171,-1207.05,0.00024095,30]
[380270987,1755630716233,-400.0,0.00024095,30]
[380270988,1755630716299,-400.0,0.00024095,30]
[380270989,1755630716359,-400.0,0.00024095,30]
[380270990,1755630716420,-633.48,0.00024095,30]
[380270991,1755630716477,-680.06,0.00024095,30]
[380270992,1755630716535,-400.0,0.00024095,30]
[380270993,1755630716593,-523.52,0.00024095,30]
[380270994,1755630716654,-514.84,0.00024095,30]
[380270995,1755630716710,-765.55,0.00024095,30]
[380270996,1755630716765,-400.0,0.00024095,30]
[380270997,1755630716819,-400.0,0.00024095,30]
[380270998,1755630716872,-2380.79,0.00024095,30]
[380270999,1755630716923,-400.0,0.00024095,30]
[380271000,1755630716976,-2214.91,0.00024095,30]
[380271001,1755630717033,-400.0,0.00024095,30]
[380271002,1755630717091,-1455.64,0.00024095,30]
[380271003,1755630717147,-2318.11,0.00024095,30]
[380271004,1755630717207,-624.94,0.00024095,30]
[380271005,1755630717271,-475.29,0.00024095,30]
[380271006,1755630717331,-400.0,0.00024095,30]
[380271007,1755630717394,-480.84,0.00024095,30]
[380271008,1755630717455,-991.43,0.00024095,30]
[380271009,1755630717513,-457.25,0.00024095,30]
[380271010,1755630717570,-435.28,0.00024095,30]
[380271011,1755630717625,-338.81308503,0.00024095,30]
[380271012,1755630717679,-600.44,0.00024095,30]
[380271013,1755630717734,-752.31,0.00024095,30]
[380271014,1755630717788,-840.02,0.00024095,30]
[380271015,1755630717840,-1691.99,0.00024095,30]
[380271016,1755630717892,-1037.15,0.00024095,30]
[380271017,1755630717956,-400.0,0.00024095,30]
[380271018,1755630718017,-1042.17,0.00024095,30]
[380271019,1755630718079,-933.24,0.00024095,30]
[380271020,1755630718140,-774.29,0.00024095,30]
[380271021,1755630718200,-513.97,0.00024095,30]
[380271022,1755630718267,-400.0,0.00024095,30]
[380271023,1755630718329,-400.0,0.00024095,30]
[380271024,1755630718392,-421.43,0.00024095,30]
[380271025,1755630718453,-1791.81,0.00024095,30]
[380271026,1755630718512,-2573.42,0.00024095,30]
[380271027,1755630718570,-674.85,0.00024095,30]
[380271028,1755630718625,-925.02,0.00024095,30]
[380271029,1755630718681,-2152.71,0.00024095,30]
[380271030,1755630718736,-400.0,0.00024095,30]
[380271031,1755630718796,-691.76,0.00024095,30]
[380271032,1755630718853,-400.0,0.00024095,30]
[380271033,1755630718907,-1838.62,0.00024095,30]
[380271034,1755630718962,-1032.92,0.00024095,30]
[380271035,1755630719018,-400.0,0.00024095,30]
[380271036,1755630719076,-400.0,0.00024095,30]
[380271037,1755630719140,-618.96,0.00024095,30]
[380271038,1755630719202,-400.0,0.00024095,30]
[380271039,1755630719264,-400.0,0.00024095,30]
[380271040,1755630719328,-400.0,0.00024095,30]
[380271041,1755630719391,-2177.09,0.00024095,30]
[380271042,1755630719450,-1491.89,0.00024095,30]
[380271043,1755630719507,-1445.88,0.00024095,30]
[380271044,1755630719560,-400.0,0.00024095,30]
[380271045,1755630719613,-400.0,0.00024095,30]
[380271046,1755630719667,-400.0,0.00024095,30]
[380271047,1755630719721,-1457.27,0.00024095,30]
[380271048,1755630719776,-521.21,0.00024095,30]
[380271049,1755630719829,-808.44,0.00024095,30]
[380271050,1755630719883,-575.21,0.00024095,30]
[380271051,1755630719938,-408.12787307,0.00024095,30]
[380271052,1755630719996,-400.0,0.00024095,30]
[380271053,1755630720057,-400.0,0.00024095,30]
[380271054,1755630720123,-400.0,0.00024095,30]
[380271055,1755630720187,-741.66,0.00024095,30]
[380271056,1755630720260,-400.0,0.00024095,30]
[380271057,1755630720327,-1259.81,0.00024095,30]
[380271058,1755630720391,-400.0,0.00024095,30]
[380271059,1755630720453,-400.0,0.00024095,30]
[380271060,1755630720514,-520.65,0.00024095,30]
[380271061,1755630720574,-1250.58,0.00024095,30]
[380271062,1755630720632,-759.93,0.00024095,30]
[380271063,1755630720694,-400.0,0.00024095,30]
[380271064,1755630720756,-400.0,0.00024095,30]
[380271065,1755630720821,-400.0,0.00024095,30]
[380271066,1755630720884,-969.64,0.00024095,30]
[380271067,1755630720946,-1990.94,0.00024095,30]
[380271068,1755630721016,-1275.47,0.00024095,30]
[380271069,1755630721081,-400.0,0.00024095,30]
[380271070,1755630721145,-400.0,0.00024095,30]
[380271071,1755630721209,-400.0,0.00024095,30]
[380271072,1755630721274,-1171.85,0.00024095,30]
[380271073,1755630721337,-400.0,0.00024095,30]
[380271074,1755630721399,-400.0,0.00024095,30]
[380271075,1755630721460,-1032.99,0.00024095,30]
[380271076,1755630721523,-1115.27,0.00024095,30]
[380271077,1755630721587,-2003.39,0.00024095,30]
[380271078,1755630721647,-400.0,0.00024095,30]
[380271079,1755630721710,-400.0,0.00024095,30]
[380271080,1755630721782,-400.0,0.00024095,30]
[380271081,1755630721953,-400.0,0.00024095,30]
[380271082,1755630722076,-1093.1,0.00024095,30]
[380271083,1755630722153,-727.99,0.00024095,30]
[380271084,1755630722229,-1683.21,0.00024095,30]
[380271085,1755630722298,-690.52,0.00024095,30]
[380271086,1755630722372,-721.89,0.00024095,30]
[380271087,1755630722437,-400.0,0.00024095,30]
[380271088,1755630722503,-1864.55,0.00024095,30]
[380271089,1755630722570,-400.0,0.00024095,30]
[380271090,1755630722634,-1540.32,0.00024095,30]
[380271091,1755630722705,-933.6,0.00024095,30]
[380271092,1755630722771,-400.0,0.00024095,30]
[380271093,1755630722834,-667.4,0.00024095,30]
[380271094,1755630722895,-1549.09,0.00024095,30]
[380271095,1755630722958,-400.0,0.00024095,30]
[380271096,1755630723028,-1945.59,0.00024095,30]
[380271097,1755630723102,-400.0,0.00024095,30]
[380271098,1755630723170,-447.13,0.00024095,30]
[380271099,1755630723245,-400.0,0.00024095,30]
[380271100,1755630723325,-400.0,0.00024095,30]
[380271101,1755630723403,-834.9,0.00024095,30]
[380271102,1755630723484,-1543.97,0.00024095,30]
[380271103,1755630723556,-2463.0,0.00024095,30]
[380271104,1755630723625,-400.0,0.00024095,30]
[380271105,1755630723691,-2651.29,0.00024095,30]
[380271106,1755630723760,-1180.21,0.00024095,30]
[380271107,1755630723829,-400.0,0.00024095,30]
[380271108,1755630723897,-2251.53,0.00024095,30]
[380271109,1755630723964,-400.0,0.00024095,30]
[380271110,1755630724032,-1354.08,0.00024095,30]
[380271111,1755630724103,-632.7,0.00024095,30]
[380271112,1755630724171,-476.92,0.00024095,30]
[380271113,1755630724242,-400.0,0.00024095,30]
[380271114,1755630724311,-1498.84,0.00024095,30]
[380271115,1755630724380,-400.0,0.00024095,30]
[380271116,1755630724447,-1067.22,0.00024095,30]
[380271117,1755630724516,-1077.46,0.00024095,30]
[380271118,1755630724586,-893.12,0.00024095,30]
[380271119,1755630724655,-400.0,0.00024095,30]
[380271120,1755630724735,-400.0,0.00024095,30]
[380271121,1755630724813,-994.07,0.00024095,30]
[380271122,1755630724883,-555.34,0.00024095,30]
[380271123,1755630724955,-400.0,0.00024095,30]
[380271124,1755630725027,-919.17,0.00024095,30]
[380271125,1755630725099,-1190.15,0.00024095,30]
[380271126,1755630725172,-400.0,0.00024095,30]
[380271127,1755630725246,-400.0,0.00024095,30]
[380271128,1755630725318,-400.0,0.00024095,30]
[380271129,1755630725390,-1711.77,0.00024095,30]
[380271130,1755630725458,-624.5,0.00024095,30]
[380271131,1755630725525,-1019.51,0.00024095,30]
[380271132,1755630725593,-400.0,0.00024095,30]
[380271133,1755630725660,-400.0,0.00024095,30]
[380271134,1755630725726,-477.1,0.00024095,30]
[380271135,1755630725798,-1145.45,0.00024095,30]
[380271136,1755630725864,-1865.24,0.00024095,30]
[380271137,1755630725929,-947.97,0.00024095,30]
[380271138,1755630725995,-503.59,0.00024095,30]
[380271139,1755630726068,-400.0,0.00024095,30]
[380271140,1755630726136,-851.26,0.00024095,30]
[380271141,1755630726207,-400.0,0.00024095,30]
[380271142,1755630726276,-400.0,0.00024095,30]
[380271143,1755630726345,-437.88,0.00024095,30]
[380271144,1755630726415,-1607.24,0.00024095,30]
[380271145,1755630726482,-400.0,0.00024095,30]
[380271146,1755630726550,-400.0,0.00024095,30]
[380271147,1755630726613,-482.8,0.00024095,30]
[380271148,1755630726676,-400.0,0.00024095,30]
[380271149,1755630726741,-547.79517827,0.00024095,30]
[380271150,1755630726810,-1765.89,0.00024095,30]
[380271151,1755630726872,-1008.25,0.00024095,30]
[380271152,1755630726943,-400.0,0.00024095,30]
[380271153,1755630727008,-556.2,0.00024095,30]
[380271154,1755630727081,-400.0,0.00024095,30]
[380271155,1755630727150,-411.04,0.00024095,30]
[380271156,1755630727219,-438.9,0.00024095,30]
[380271157,1755630727292,-400.0,0.00024095,30]
[380271158,1755630727365,-400.0,0.00024095,30]
[380271159,1755630727432,-2238.16,0.00024095,30]
[380271160,1755630727501,-400.0,0.00024095,30]
[380271161,1755630727568,-400.0,0.00024095,30]
[380271162,1755630727630,-400.0,0.00024095,30]
[380271163,1755630727693,-584.89,0.00024095,30]
[380271164,1755630727760,-605.66,0.00024095,30]
[380271165,1755630727826,-698.53,0.00024095,30]
[380271166,1755630727891,-400.0,0.00024095,30]
[380271167,1755630727958,-400.0,0.00024095,30]
[380271168,1755630728024,-400.0,0.00024095,30]
[380271169,1755630728092,-461.41,0.00024095,30]
[380271170,1755630728165,-1632.1,0.00024095,30]
[380271171,1755630728238,-579.14,0.00024095,30]
[380271172,1755630728318,-400.0,0.00024095,30]
[380271173,1755630728399,-1023.1,0.00024095,30]
[380271174,1755630728472,-2074.73,0.00024095,30]
[380271175,1755630729080,-596.89,0.00024095,30]
[380271176,1755630729159,-400.0,0.00024095,30]
[380271177,1755630729231,-400.0,0.00024095,30]
[380271178,1755630729300,-400.0,0.00024095,30]
[380271179,1755630729370,-400.0,0.00024095,30]
[380271180,1755630729438,-400.0,0.00024095,30]
[380271181,1755630729506,-773.53,0.00024095,30]
[380271182,1755630729572,-1825.28,0.00024095,30]
[380271183,1755630729639,-1523.06,0.00024095,30]
[380271184,1755630729706,-400.0,0.00024095,30]
[380271185,1755630729772,-2716.46,0.00024095,30]
[380271186,1755630729838,-400.0,0.00024095,30]
[380271187,1755630729903,-400.0,0.00024095,30]
[380271188,1755630729969,-400.0,0.00024095,30]
[380271189,1755630730040,-408.97,0.00024095,30]
[380271190,1755630730109,-1571.86,0.00024095,30]
[380271191,1755630730186,-403.44,0.00024095,30]
[380271192,1755630730254,-400.0,0.00024095,30]
[380271193,1755630730322,-400.0,0.00024095,30]
[380271194,1755630730390,-2094.77,0.00024095,30]
[380271195,1755630730457,-400.0,0.00024095,30]
[380271196,1755630730524,-400.0,0.00024095,30]
[380271197,1755630730590,-445.03,0.00024095,30]
[380271198,1755630730659,-410.03,0.00024095,30]
[380271199,1755630730724,-400.0,0.00024095,30]
[380271200,1755630730800,-1358.16,0.00024095,30]
[380271201,1755630730868,-2348.69,0.00024095,30]
[380271202,1755630730935,-1179.36,0.00024095,30]
[380271203,1755630731000,-506.52,0.00024095,30]
[380271204,1755630731066,-400.0,0.00024095,30]
[380271205,1755630731131,-1821.21,0.00024095,30]
[380271206,1755630731195,-657.8,0.00024095,30]
[380271207,1755630731261,-590.84,0.00024095,30]
[380271208,1755630731327,-400.0,0.00024095,30]
[380271209,1755630731393,-912.76,0.00024095,30]
[380271210,1755630731459,-400.0,0.00024095,30]
[380271211,1755630731525,-1223.73,0.00024095,30]
[380271212,1755630731586,-400.0,0.00024095,30]
[380271213,1755630731646,-400.0,0.00024095,30]
[380271214,1755630731711,-1766.94,0.00024095,30]
[380271215,1755630731770,-2098.13,0.00024095,30]
[380271216,1755630731825,-964.55,0.00024095,30]
[380271217,1755630731896,-400.0,0.00024095,30]
[380271218,1755630731955,-907.48,0.00024095,30]
[380271219,1755630732014,-400.0,0.00024095,30]
[380271220,1755630732077,-1038.22,0.00024095,30]
[380271221,1755630732144,-400.0,0.00024095,30]
[380271222,1755630732222,-500.04,0.00024095,30]
[380271223,1755630732288,-400.0,0.00024095,30]
[380271224,1755630732351,-3192.48,0.00024095,30]
[380271225,1755630732415,-2133.63,0.00024095,30]
[380271226,1755630732478,-1673.85,0.00024095,30]
[380271227,1755630732538,-3254.26,0.00024095,30]
[380271228,1755630732597,-406.02,0.00024095,30]
[380271229,1755630732659,-400.0,0.00024095,30]
[380271230,1755630732719,-960.18,0.00024095,30]
[380271231,1755630732777,-594.4,0.00024095,30]
[380271232,1755630732833,-1003.4,0.00024095,30]
[380271233,1755630732891,-416.9,0.00024095,30]
[380271234,1755630732948,-479.67,0.00024095,30]
[380271235,1755630733012,-2104.94,0.00024095,30]
[380271236,1755630733073,-1658.41,0.00024095,30]
[380271237,1755630733134,-400.0,0.00024095,30]
[380271238,1755630733196,-672.86,0.00024095,30]
[380271239,1755630733265,-400.0,0.00024095,30]
[380271240,1755630733328,-400.0,0.00024095,30]
[380271241,1755630733390,-1715.1,0.00024095,30]
[380271242,1755630733454,-400.0,0.00024095,30]
[380271243,1755630733514,-400.0,0.00024095,30]
[380271244,1755630733576,-775.68,0.00024095,30]
[380271245,1755630733636,-933.05,0.00024095,30]
[380271246,1755630733696,-503.65,0.00024095,30]
[380271247,1755630733754,-930.59,0.00024095,30]
[380271248,1755630733812,-400.0,0.00024095,30]
[380271249,1755630733868,-400.0,0.00024095,30]
[380271250,1755630733924,-1249.51,0.00024095,30]
[380271251,1755630733984,-2775.35,0.00024095,30]
[380271252,1755630734049,-400.0,0.00024095,30]
[380271253,1755630734268,-976.92,0.00024095,30]
[380271254,1755630734331,-400.0,0.00024095,30]
[380271255,1755630734396,-557.23,0.00024095,30]
[380271256,1755630734457,-503.04,0.00024095,30]
[380271257,1755630734517,-668.31,0.00024095,30]
[380271258,1755630734577,-745.22,0.00024095,30]
[380271259,1755630734637,-804.51,0.00024095,30]
[380271260,1755630734698,-400.0,0.00024095,30]
[380271261,1755630734760,-400.0,0.00024095,30]
[380271262,1755630734818,-400.0,0.00024095,30]
[380271263,1755630734880,-466.38,0.00024095,30]
[380271264,1755630734944,-1250.28,0.00024095,30]
[380271265,1755630735010,-2981.31,0.00024095,30]
[380271266,1755630735075,-1112.61,0.00024095,30]
[380271267,1755630735138,-866.17,0.00024095,30]
[380271268,1755630735203,-1994.95,0.00024095,30]
[380271269,1755630735268,-400.0,0.00024095,30]
[380271270,1755630735336,-664.23,0.00024095,30]
[380271271,1755630735401,-400.0,0.00024095,30]
[380271272,1755630735468,-410.99,0.00024095,30]
[380271273,1755630735534,-400.0,0.00024095,30]
[380271274,1755630735597,-2158.15,0.00024095,30]
[380271275,1755630735660,-481.8,0.00024095,30]
[380271276,1755630735723,-509.99,0.00024095,30]
[380271277,1755630735786,-400.0,0.00024095,30]
[380271278,1755630735849,-400.0,0.00024095,30]
[380271279,1755630735910,-1750.63,0.00024095,30]
[380271280,1755630735972,-1813.31,0.00024095,30]
[380271281,1755630736035,-400.0,0.00024095,30]
[380271282,1755630736099,-400.0,0.00024095,30]
[380271283,1755630736163,-400.0,0.00024095,30]
[380271284,1755630736227,-400.0,0.00024095,30]
[380271285,1755630736292,-467.36,0.00024095,30]
[380271286,1755630736354,-400.0,0.00024095,30]
[380271287,1755630736418,-413.19,0.00024095,30]
[380271288,1755630736477,-400.0,0.00024095,30]
[380271289,1755630736537,-400.0,0.00024095,30]
[380271290,1755630736596,-855.55,0.00024095,30]
[380271291,1755630736656,-400.0,0.00024095,30]
[380271292,1755630736719,-601.39,0.00024095,30]
[380271293,1755630736774,-400.0,0.00024095,30]
[380271294,1755630736832,-2280.39,0.00024095,30]
[380271295,1755630736892,-2862.7,0.00024095,30]
[380271296,1755630736952,-1314.81,0.00024095,30]
[380271297,1755630737015,-400.0,0.00024095,30]
[380271298,1755630737078,-975.51,0.00024095,30]
[380271299,1755630737142,-400.0,0.00024095,30]
[380271300,1755630737207,-400.0,0.00024095,30]
[380271301,1755630737268,-2207.52,0.00024095,30]
[380271302,1755630737331,-1840.1,0.00024095,30]
[380271303,1755630737404,-2643.18,0.00024095,30]
[380271304,1755630737471,-400.0,0.00024095,30]
[380271305,1755630737533,-1472.7,0.00024095,30]
[380271306,1755630737594,-517.95,0.00024095,30]
[380271307,1755630737652,-400.0,0.00024095,30]
[380271308,1755630737713,-400.0,0.00024095,30]
[380271309,1755630737770,-1486.54,0.00024095,30]